[Event "NJSK 2022 Meisjes C"]
[Site "Almelo, Netherlands"]
[Date "2022.05.03"]
[Round "3.5"]
[White "Verbunt, Lisa"]
[Black "Knobbe, Elise"]
[Result "0-1"]
[TimeControl "90min/40moves + 30min + 30sec/move"]
[WhiteElo "807"]
[BlackElo "1553"]

1. e4 {[%clk 01:30:58]} {[%emt 00:00:03]} c5 {[%clk 01:30:56]} {[%emt
00:00:04]} 2. c3 {[%clk 01:31:17]} {[%emt 00:00:11]} Nc6 {[%clk 01:30:28]}
{[%emt 00:00:58]} 3. d4 {[%clk 01:31:35]} {[%emt 00:00:11]} d5 {[%clk
01:30:35]} {[%emt 00:00:23]} 4. e5 {[%clk 01:31:56]} {[%emt 00:00:10]} e6
{[%clk 01:30:34]} {[%emt 00:00:31]} 5. Nf3 {[%clk 01:32:20]} {[%emt 00:00:06]}
b6 {[%clk 01:30:27]} {[%emt 00:00:37]} 6. Bd3 {[%clk 01:32:32]} {[%emt
00:00:17]} g6 {[%clk 01:30:13]} {[%emt 00:00:44]} 7. Na3 {[%clk 01:32:26]}
{[%emt 00:00:37]} Bg7 {[%clk 01:30:04]} {[%emt 00:00:38]} 8. Nc2 {[%clk
01:32:09]} {[%emt 00:00:47]} Nge7 {[%clk 01:29:32]} {[%emt 00:01:02]} 9. O-O
{[%clk 01:32:09]} {[%emt 00:00:30]} O-O {[%clk 01:29:51]} {[%emt 00:00:12]} 10.
Bg5 {[%clk 01:31:36]} {[%emt 00:01:02]} Qd7 {[%clk 01:28:58]} {[%emt 00:01:24]}
11. Re1 {[%clk 01:31:42]} {[%emt 00:00:24]} Bb7 {[%clk 01:28:52]} {[%emt
00:00:36]} 12. Qd2 {[%clk 01:31:13]} {[%emt 00:00:58]} Rac8 {[%clk 01:27:40]}
{[%emt 00:01:42]} 13. Rac1 {[%clk 01:29:40]} {[%emt 00:02:03]} cxd4 {[%clk
01:25:19]} {[%emt 00:02:52]} 14. cxd4 {[%clk 01:27:11]} {[%emt 00:02:59]} Na5
{[%clk 01:24:38]} {[%emt 00:01:11]} 15. b3 {[%clk 01:27:02]} {[%emt 00:00:39]}
Nac6 {[%clk 01:24:13]} {[%emt 00:00:54]} 16. h3 {[%clk 01:26:42]} {[%emt
00:00:50]} Kh8 {[%clk 01:19:37]} {[%emt 00:05:06]} 17. Qf4 {[%clk 01:25:19]}
{[%emt 00:01:51]} Nf5 {[%clk 01:15:02]} {[%emt 00:05:08]} 18. g4 {[%clk
01:25:03]} {[%emt 00:00:46]} Nfe7 {[%clk 01:13:30]} {[%emt 00:02:02]} 19. h4
{[%clk 01:24:04]} {[%emt 00:01:28]} Ng8 {[%clk 01:04:07]} {[%emt 00:09:54]} 20.
Bf6 {[%clk 01:23:29]} {[%emt 00:01:04]} Rfe8 {[%clk 01:02:03]} {[%emt
00:02:33]} 21. h5 {[%clk 01:23:21]} {[%emt 00:00:39]} Qc7 {[%clk 00:53:33]}
{[%emt 00:09:00]} 22. h6 {[%clk 01:22:06]} {[%emt 00:01:46]} Bxf6 {[%clk
00:50:52]} {[%emt 00:03:11]} 23. exf6 {[%clk 01:22:18]} {[%emt 00:00:18]} Qxf4
{[%clk 00:51:07]} {[%emt 00:00:13]} 0-1

[Event "NJSK 2022 Meisjes C"]
[Site "Almelo, Netherlands"]
[Date "2022.05.03"]
[Round "3.6"]
[White "De Bruijne, Marlies"]
[Black "Fu, Janice"]
[Result "0-1"]
[TimeControl "90min/40moves + 30min + 30sec/move"]
[WhiteElo "858"]
[BlackElo "1344"]

1. e4 {[%clk 01:30:58]} {[%emt 00:00:02]} e5 {[%clk 01:30:54]} {[%emt
00:00:06]} 2. Nf3 {[%clk 01:31:18]} {[%emt 00:00:10]} Nc6 {[%clk 01:31:17]}
{[%emt 00:00:07]} 3. Bc4 {[%clk 01:30:40]} {[%emt 00:01:08]} Bc5 {[%clk
01:31:36]} {[%emt 00:00:11]} 4. d3 {[%clk 01:30:20]} {[%emt 00:00:51]} d6
{[%clk 01:30:37]} {[%emt 00:01:28]} 5. Ng5 {[%clk 01:28:22]} {[%emt 00:02:28]}
Nh6 {[%clk 01:21:52]} {[%emt 00:09:15]} 6. h3 {[%clk 01:26:36]} {[%emt
00:02:16]} Na5 {[%clk 01:20:33]} {[%emt 00:01:48]} 7. Nf3 {[%clk 01:22:35]}
{[%emt 00:04:32]} Nxc4 {[%clk 01:19:16]} {[%emt 00:01:47]} 8. dxc4 {[%clk
01:22:12]} {[%emt 00:00:53]} Be6 {[%clk 01:17:30]} {[%emt 00:02:16]} 9. Bxh6
{[%clk 01:18:43]} {[%emt 00:03:59]} gxh6 {[%clk 01:17:38]} {[%emt 00:00:22]} 10.
Nbd2 {[%clk 01:17:56]} {[%emt 00:01:18]} Rg8 {[%clk 01:17:05]} {[%emt
00:01:02]} 11. Rg1 {[%clk 01:16:37]} {[%emt 00:01:49]} Qe7 {[%clk 01:15:51]}
{[%emt 00:01:43]} 12. Qe2 {[%clk 01:15:02]} {[%emt 00:02:05]} O-O-O {[%clk
01:15:40]} {[%emt 00:00:42]} 13. O-O-O {[%clk 01:15:21]} {[%emt 00:00:11]} f5
{[%clk 01:15:16]} {[%emt 00:00:54]} 14. g3 {[%clk 01:11:48]} {[%emt 00:04:03]}
Qf7 {[%clk 01:13:18]} {[%emt 00:02:28]} 15. Rh1 {[%clk 01:09:07]} {[%emt
00:03:11]} fxe4 {[%clk 01:12:40]} {[%emt 00:01:09]} 16. Qxe4 {[%clk 01:06:12]}
{[%emt 00:03:24]} Bxf2 {[%clk 01:12:37]} {[%emt 00:00:33]} 17. g4 {[%clk
01:00:10]} {[%emt 00:06:31]} Qg6 {[%clk 01:04:34]} {[%emt 00:08:34]} 18. b3
{[%clk 00:57:15]} {[%emt 00:03:25]} Bc5 {[%clk 01:03:13]} {[%emt 00:01:50]} 19.
Qxg6 {[%clk 00:52:42]} {[%emt 00:05:04]} Ba3+ {[%clk 01:03:07]} {[%emt
00:00:36]} 20. Kb1 {[%clk 00:52:42]} {[%emt 00:00:30]} hxg6 {[%clk 01:03:21]}
{[%emt 00:00:16]} 21. g5 {[%clk 00:51:01]} {[%emt 00:02:12]} hxg5 {[%clk
01:02:01]} {[%emt 00:01:49]} 22. Nxg5 {[%clk 00:51:10]} {[%emt 00:00:21]} Bf5
{[%clk 01:02:15]} {[%emt 00:00:16]} 23. Nf7 {[%clk 00:49:27]} {[%emt 00:02:13]}
Rdf8 {[%clk 01:01:51]} {[%emt 00:00:53]} 24. Nh6 {[%clk 00:48:46]} {[%emt
00:01:12]} Rh8 {[%clk 01:02:03]} {[%emt 00:00:16]} 25. Nxf5 {[%clk 00:48:53]}
{[%emt 00:00:25]} gxf5 {[%clk 01:02:09]} {[%emt 00:00:23]} 26. c3 {[%emt
00:01:57]} Bc5 {[%clk 01:01:59]} 27. b4 {[%clk 00:47:53]} {[%emt 00:00:44]} Be3
{[%clk 01:01:07]} {[%emt 00:01:21]} 28. Nb3 {[%clk 00:46:52]} {[%emt 00:01:33]}
f4 {[%clk 01:00:45]} {[%emt 00:00:51]} 29. a4 {[%clk 00:45:40]} {[%emt
00:01:45]} f3 {[%clk 01:00:42]} {[%emt 00:00:30]} 30. Rdf1 {[%clk 00:45:09]}
{[%emt 00:01:00]} e4 {[%clk 01:00:32]} {[%emt 00:00:41]} 31. Kc2 {[%clk
00:42:39]} {[%emt 00:03:00]} f2 {[%clk 00:59:21]} {[%emt 00:01:41]} 32. Kd1
{[%clk 00:42:41]} {[%emt 00:00:28]} Rf3 {[%clk 00:58:27]} {[%emt 00:01:24]} 33.
h4 {[%clk 00:42:19]} {[%emt 00:00:53]} Rg8 {[%clk 00:57:49]} {[%emt 00:01:08]}
34. Rh2 {[%clk 00:42:13]} {[%emt 00:00:35]} Rgg3 {[%clk 00:56:04]} {[%emt
00:02:16]} 35. Ke2 {[%clk 00:41:46]} {[%emt 00:00:57]} Rg1 {[%clk 00:54:18]}
{[%emt 00:02:15]} 36. Nd4 {[%clk 00:40:45]} {[%emt 00:01:31]} Bxd4 {[%clk
00:52:54]} {[%emt 00:01:55]} 37. cxd4 {[%clk 00:41:05]} {[%emt 00:00:09]} Rxf1
{[%clk 00:53:04]} {[%emt 00:00:20]} 38. Kxf1 {[%clk 00:41:23]} {[%emt
00:00:12]} e3 {[%clk 00:53:23]} {[%emt 00:00:12]} 39. Rh1 {[%clk 00:40:51]}
{[%emt 00:01:02]} Rg3 {[%clk 00:46:48]} {[%emt 00:07:04]} 40. h5 {[%clk
00:36:51]} {[%emt 00:04:29]} Rg7 {[%clk 00:44:46]} {[%emt 00:02:33]} 41. h6
{[%clk 00:36:20]} {[%emt 00:01:01]} Rh7 {[%clk 00:44:59]} {[%emt 00:00:18]} 42.
Ke2 {[%clk 00:36:08]} {[%emt 00:00:42]} Kd7 {[%clk 00:45:00]} {[%emt 00:00:29]}
43. Kxe3 {[%clk 00:35:27]} {[%emt 00:01:11]} Ke6 {[%clk 00:45:14]} {[%emt
00:00:15]} 44. Ke4 {[%clk 00:34:57]} {[%emt 00:01:00]} Ke7 {[%clk 00:41:54]}
{[%emt 00:03:50]} 45. Kd5 {[%clk 00:33:12]} {[%emt 00:02:13]} Rxh6 {[%clk
00:41:12]} {[%emt 00:01:15]} 46. Rf1 {[%clk 00:32:30]} {[%emt 00:01:11]} Rh4
{[%clk 00:40:09]} {[%emt 00:01:32]} 47. c5 {[%clk 00:32:37]} {[%emt 00:00:25]}
c6+ {[%clk 00:40:04]} {[%emt 00:00:34]} 48. Kc4 {[%clk 00:32:52]} {[%emt
00:00:15]} Rf4 {[%clk 00:39:38]} {[%emt 00:00:56]} 49. b5 {[%clk 00:31:17]}
{[%emt 00:02:05]} Rf3 {[%clk 00:38:12]} {[%emt 00:01:56]} 50. bxc6 {[%clk
00:27:45]} {[%emt 00:04:02]} bxc6 {[%clk 00:38:21]} {[%emt 00:00:21]} 51. a5
{[%clk 00:26:22]} {[%emt 00:01:54]} d5+ {[%clk 00:38:28]} {[%emt 00:00:23]} 52.
Kb4 {[%clk 00:26:39]} {[%emt 00:00:12]} Kf6 {[%clk 00:38:37]} {[%emt 00:00:21]}
53. a6 {[%clk 00:23:56]} {[%emt 00:03:13]} Kf5 {[%clk 00:38:40]} {[%emt
00:00:26]} 54. Ka4 {[%clk 00:23:37]} {[%emt 00:00:50]} Kg4 {[%clk 00:38:55]}
{[%emt 00:00:14]} 55. Re1 {[%clk 00:22:51]} {[%emt 00:01:16]} Ra3+ {[%clk
00:38:58]} {[%emt 00:00:28]} 56. Kxa3 {[%clk 00:22:31]} {[%emt 00:00:50]}
fxe1=Q {[%clk 00:39:12]} {[%emt 00:00:16]} 57. Ka4 {[%clk 00:22:28]} {[%emt
00:00:34]} Qd1+ {[%emt 00:01:07]} 58. Kb4 {[%clk 00:22:32]} Qxd4+ {[%clk
00:39:22]} {[%emt 00:00:08]} 59. Ka3 {[%clk 00:23:11]} {[%emt 00:00:23]} Kf3
{[%clk 00:40:00]} {[%emt 00:00:20]} 60. Kb3 {[%clk 00:23:28]} {[%emt 00:00:13]}
Ke3 {[%clk 00:40:16]} {[%emt 00:00:14]} 61. Ka3 {[%clk 00:23:42]} {[%emt
00:00:17]} Qxc5+ {[%clk 00:40:35]} {[%emt 00:00:11]} 62. Ka4 {[%clk 00:23:58]}
{[%emt 00:00:13]} Qb6 {[%clk 00:40:44]} {[%emt 00:00:19]} 63. Ka3 {[%clk
00:24:21]} {[%emt 00:00:09]} Kd3 {[%clk 00:41:03]} {[%emt 00:00:10]} 64. Ka4
{[%clk 00:24:41]} {[%emt 00:00:12]} Kc3 {[%clk 00:41:21]} {[%emt 00:00:10]} 65.
Ka3 {[%clk 00:25:00]} {[%emt 00:00:12]} Qb3# {[%clk 00:41:17]} {[%emt
00:00:03]} 0-1

[Event "NJSK 2022 Meisjes C"]
[Site "Almelo, Netherlands"]
[Date "2022.05.03"]
[Round "3.7"]
[White "Koorevaar, Sarah-Joy"]
[Black "Roebers, Bregje"]
[Result "0-1"]
[TimeControl "90min/40moves + 30min + 30sec/move"]
[WhiteElo "849"]
[BlackElo "1214"]

1. d4 {[%clk 01:30:59]} {[%emt 00:00:01]} d5 {[%clk 01:30:53]} {[%emt
00:00:08]} 2. c4 {[%clk 01:31:25]} {[%emt 00:00:04]} e6 {[%clk 01:30:54]}
{[%emt 00:00:28]} 3. Nc3 {[%clk 01:30:57]} {[%emt 00:00:58]} Nf6 {[%clk
01:31:08]} {[%emt 00:00:16]} 4. g3 {[%clk 01:30:59]} {[%emt 00:00:29]} Be7
{[%clk 01:30:34]} {[%emt 00:01:03]} 5. Bg2 {[%clk 01:31:13]} {[%emt 00:00:15]}
Nc6 {[%clk 01:28:46]} {[%emt 00:02:19]} 6. Bg5 {[%clk 01:30:39]} {[%emt
00:01:04]} dxc4 {[%clk 01:27:45]} {[%emt 00:01:31]} 7. Nf3 {[%clk 01:30:01]}
{[%emt 00:01:07]} Nd5 {[%clk 01:25:58]} {[%emt 00:02:18]} 8. Nxd5 {[%clk
01:27:49]} {[%emt 00:02:42]} exd5 {[%clk 01:26:13]} {[%emt 00:00:15]} 9. Bxe7
{[%clk 01:27:45]} {[%emt 00:00:34]} Nxe7 {[%clk 01:25:57]} {[%emt 00:00:46]} 10.
O-O {[%clk 01:27:03]} {[%emt 00:01:11]} O-O {[%clk 01:26:17]} {[%emt 00:00:11]}
11. Re1 {[%clk 01:26:16]} {[%emt 00:01:17]} Nc6 {[%clk 01:24:44]} {[%emt
00:02:04]} 12. Rc1 {[%clk 01:24:47]} {[%emt 00:01:58]} Re8 {[%clk 01:23:26]}
{[%emt 00:01:48]} 13. Qc2 {[%clk 01:24:13]} {[%emt 00:01:02]} Be6 {[%clk
01:22:40]} {[%emt 00:01:18]} 14. e4 {[%clk 01:23:09]} {[%emt 00:01:32]} Nb4
{[%clk 01:19:38]} {[%emt 00:03:34]} 15. Qd2 {[%clk 01:18:23]} {[%emt 00:05:15]}
Nd3 {[%clk 01:19:43]} {[%emt 00:00:26]} 16. exd5 {[%clk 01:18:13]} {[%emt
00:00:39]} Nxe1 {[%clk 01:20:02]} {[%emt 00:00:12]} 17. dxe6 {[%clk 01:18:22]}
{[%emt 00:00:21]} Nxf3+ {[%clk 01:19:57]} {[%emt 00:00:35]} 18. Bxf3 {[%clk
01:18:36]} {[%emt 00:00:16]} Rxe6 {[%clk 01:19:17]} {[%emt 00:01:10]} 19. Rxc4
{[%clk 01:17:34]} {[%emt 00:01:32]} c6 {[%clk 01:18:04]} {[%emt 00:01:43]} 20.
Qc3 {[%clk 01:15:16]} {[%emt 00:02:47]} Re7 {[%clk 01:15:22]} {[%emt 00:03:13]}
21. d5 {[%clk 01:11:49]} {[%emt 00:03:56]} cxd5 {[%clk 01:13:59]} {[%emt
00:01:54]} 22. Rd4 {[%clk 01:11:54]} {[%emt 00:00:23]} Rc8 {[%clk 01:13:01]}
{[%emt 00:01:30]} 23. Rxd5 {[%clk 01:10:13]} {[%emt 00:02:11]} Qe8 {[%clk
01:11:57]} {[%emt 00:01:34]} 24. Qd2 {[%clk 01:08:48]} {[%emt 00:01:52]} Qc6
{[%clk 01:04:18]} {[%emt 00:08:11]} 25. Qd4 {[%clk 01:02:20]} {[%emt 00:06:55]}
h6 {[%clk 00:57:41]} {[%emt 00:07:10]} 26. Kg2 {[%clk 01:01:46]} {[%emt
00:01:04]} Qb6 {[%clk 00:56:32]} {[%emt 00:01:40]} 27. Qf4 {[%clk 00:56:50]}
{[%emt 00:05:23]} Qxb2 {[%clk 00:51:24]} {[%emt 00:05:40]} 28. Be4 {[%clk
00:50:20]} {[%emt 00:06:59]} Rce8 {[%clk 00:47:50]} {[%emt 00:04:05]} 29. Rd2
{[%clk 00:47:33]} {[%emt 00:03:13]} Qe5 {[%clk 00:47:09]} {[%emt 00:01:15]} 30.
Qxe5 {[%clk 00:45:29]} {[%emt 00:02:35]} Rxe5 {[%clk 00:47:27]} {[%emt
00:00:12]} 31. Bxb7 {[%clk 00:43:56]} {[%emt 00:02:02]} Re2 {[%clk 00:47:21]}
{[%emt 00:00:37]} 32. Rxe2 {[%clk 00:43:51]} {[%emt 00:00:35]} Rxe2 {[%clk
00:47:38]} {[%emt 00:00:13]} 33. Bd5 {[%clk 00:43:50]} {[%emt 00:00:30]} Kf8
{[%clk 00:47:10]} {[%emt 00:00:59]} 34. Kf3 {[%clk 00:43:24]} {[%emt 00:00:56]}
Re7 {[%clk 00:46:56]} {[%emt 00:00:44]} 35. Be4 {[%clk 00:41:58]} {[%emt
00:01:56]} Ke8 {[%clk 00:46:48]} {[%emt 00:00:38]} 36. Kf4 {[%clk 00:41:20]}
{[%emt 00:01:07]} g6 {[%clk 00:46:08]} {[%emt 00:01:10]} 37. f3 {[%clk
00:41:14]} {[%emt 00:00:36]} Kd8 {[%clk 00:45:39]} {[%emt 00:01:00]} 38. h4
{[%clk 00:41:14]} {[%emt 00:00:29]} Kc7 {[%clk 00:44:53]} {[%emt 00:01:18]} 39.
Kg4 {[%clk 00:40:29]} {[%emt 00:01:14]} f5+ {[%clk 00:44:28]} {[%emt 00:00:55]}
40. Bxf5 {[%clk 00:40:30]} {[%emt 00:00:28]} gxf5+ {[%clk 00:44:50]} {[%emt
00:00:08]} 41. Kxf5 {[%clk 00:40:34]} {[%emt 00:00:26]} Rf7+ {[%clk 00:44:58]}
{[%emt 00:00:23]} 42. Kg4 {[%clk 00:40:54]} {[%emt 00:00:09]} Rg7+ {[%clk
00:44:35]} {[%emt 00:00:54]} 43. Kf4 {[%clk 00:40:46]} {[%emt 00:00:37]} Kd6
{[%clk 00:44:12]} {[%emt 00:03:21]} 44. g4 {[%clk 00:00:00]} {[%emt 00:02:08]}
Ke6 {[%clk 00:44:33]} {[%emt 00:01:22]} 45. Ke4 {[%clk 00:38:07]} {[%emt
00:00:58]} Rf7 {[%clk 00:43:12]} {[%emt 00:01:50]} 46. f4 {[%clk 00:37:48]}
{[%emt 00:00:48]} Kf6 {[%clk 00:43:05]} {[%emt 00:00:38]} 47. g5+ {[%clk
00:37:29]} {[%emt 00:00:49]} hxg5 {[%clk 00:43:21]} {[%emt 00:00:15]} 48. hxg5+
{[%clk 00:37:38]} {[%emt 00:00:20]} Kg6 {[%clk 00:43:24]} {[%emt 00:00:26]} 49.
Kf3 {[%clk 00:37:31]} {[%emt 00:00:37]} Rf5 {[%clk 00:42:52]} {[%emt 00:01:03]}
50. Kg4 {[%clk 00:37:23]} {[%emt 00:00:38]} Ra5 {[%clk 00:42:57]} {[%emt
00:00:26]} 0-1

[Event "NJSK 2022 Meisjes C"]
[Site "Almelo, Netherlands"]
[Date "2022.05.03"]
[Round "3.8"]
[White "Jonkman, Sophia"]
[Black "Kulikova, Polina"]
[Result "0-1"]
[TimeControl "90min/40moves + 30min + 30sec/move"]
[WhiteElo "1417"]
[BlackElo "1117"]

1. d4 {[%clk 01:30:57]} {[%emt 00:00:02]} Nf6 {[%clk 01:30:41]} {[%emt
00:00:19]} 2. c4 {[%clk 01:31:18]} {[%emt 00:00:10]} e6 {[%clk 01:30:50]}
{[%emt 00:00:21]} 3. Nf3 {[%clk 01:31:17]} {[%emt 00:00:31]} b6 {[%clk
01:30:46]} {[%emt 00:00:34]} 4. g3 {[%clk 01:30:57]} {[%emt 00:00:50]} Bb7
{[%clk 01:31:06]} {[%emt 00:00:09]} 5. Bg2 {[%clk 01:30:56]} {[%emt 00:00:31]}
Bb4+ {[%clk 01:30:17]} {[%emt 00:01:19]} 6. Bd2 {[%clk 01:30:50]} {[%emt
00:00:36]} Bxd2+ {[%clk 01:30:07]} {[%emt 00:00:40]} 7. Nbxd2 {[%clk 01:30:17]}
{[%emt 00:01:04]} O-O {[%clk 01:29:40]} {[%emt 00:00:57]} 8. O-O {[%clk
01:29:44]} {[%emt 00:01:02]} d5 {[%clk 01:28:37]} {[%emt 00:01:33]} 9. b3
{[%clk 01:21:21]} {[%emt 00:08:54]} Nc6 {[%clk 01:24:11]} {[%emt 00:04:56]} 10.
e3 {[%clk 01:13:22]} {[%emt 00:08:28]} Ne7 {[%clk 01:23:39]} {[%emt 00:01:02]}
11. Qc2 {[%clk 01:02:05]} {[%emt 00:11:47]} Ng6 {[%clk 01:21:19]} {[%emt
00:02:50]} 12. Rfd1 {[%clk 00:55:25]} {[%emt 00:07:11]} Re8 {[%clk 01:20:09]}
{[%emt 00:01:40]} 13. Rac1 {[%clk 00:45:50]} {[%emt 00:10:05]} Rc8 {[%clk
01:19:00]} {[%emt 00:01:38]} 14. cxd5 {[%clk 00:43:16]} {[%emt 00:03:05]} exd5
{[%clk 01:13:13]} {[%emt 00:06:16]} 15. Qc3 {[%clk 00:40:20]} {[%emt 00:03:26]}
c6 {[%clk 01:09:54]} {[%emt 00:03:49]} 16. Ne5 {[%clk 00:36:07]} {[%emt
00:04:44]} Qe7 {[%clk 01:04:41]} {[%emt 00:05:43]} 17. Nxg6 {[%clk 00:35:08]}
{[%emt 00:01:29]} fxg6 {[%clk 01:04:57]} {[%emt 00:00:14]} 18. Qd3 {[%clk
00:32:21]} {[%emt 00:03:16]} Rf8 {[%clk 01:02:19]} {[%emt 00:03:07]} 19. h3
{[%clk 00:31:07]} {[%emt 00:01:45]} Qf7 {[%clk 00:59:55]} {[%emt 00:02:54]} 20.
Rf1 {[%clk 00:29:52]} {[%emt 00:01:45]} Rc7 {[%clk 00:59:07]} {[%emt 00:01:16]}
21. e4 {[%clk 00:28:08]} {[%emt 00:02:16]} dxe4 {[%clk 00:58:45]} {[%emt
00:00:51]} 22. Nxe4 {[%clk 00:27:54]} {[%emt 00:00:45]} Nxe4 {[%clk 00:58:09]}
{[%emt 00:01:06]} 23. Bxe4 {[%clk 00:27:56]} {[%emt 00:00:28]} Rd8 {[%clk
00:56:44]} {[%emt 00:01:53]} 24. a4 {[%clk 00:26:43]} {[%emt 00:01:46]} c5
{[%clk 00:54:56]} {[%emt 00:02:18]} 25. Bxb7 {[%clk 00:23:44]} {[%emt
00:03:29]} Rxb7 {[%clk 00:55:11]} {[%emt 00:00:15]} 26. Qb5 {[%clk 00:19:14]}
{[%emt 00:05:00]} Rxd4 {[%clk 00:55:00]} {[%emt 00:00:40]} 27. Qc6 {[%clk
00:18:13]} {[%emt 00:01:32]} Qd7 {[%clk 00:54:27]} {[%emt 00:00:55]} 28. Qf3
{[%clk 00:17:03]} {[%emt 00:01:47]} Rd3 {[%clk 00:52:56]} {[%emt 00:02:00]} 29.
Qf4 {[%clk 00:16:51]} {[%emt 00:00:43]} Rxb3 {[%clk 00:51:56]} {[%emt
00:01:29]} 30. Rfe1 {[%clk 00:16:40]} {[%emt 00:00:43]} Rb4 {[%clk 00:47:20]}
{[%emt 00:05:02]} 31. Qf3 {[%clk 00:15:02]} {[%emt 00:02:11]} h6 {[%clk
00:45:18]} {[%emt 00:02:32]} 32. Re3 {[%clk 00:13:54]} {[%emt 00:01:39]} Qf7
{[%clk 00:42:17]} {[%emt 00:03:30]} 33. Qg2 {[%clk 00:11:50]} {[%emt 00:02:34]}
Re7 {[%clk 00:39:47]} {[%emt 00:03:00]} 34. Qa8+ {[%clk 00:11:47]} {[%emt
00:00:34]} Kh7 {[%clk 00:39:36]} {[%emt 00:00:40]} 35. Kg2 {[%clk 00:10:18]}
{[%emt 00:01:59]} Rxe3 {[%clk 00:39:49]} {[%emt 00:00:16]} 36. Rc2 {[%clk
00:08:41]} {[%emt 00:02:09]} Rd3 {[%clk 00:39:15]} {[%emt 00:01:03]} 37. Re2
{[%clk 00:07:31]} {[%emt 00:01:40]} Qd5+ {[%clk 00:38:44]} {[%emt 00:01:02]} 38.
Qxd5 {[%clk 00:07:28]} {[%emt 00:00:32]} Rxd5 {[%clk 00:39:12]} {[%emt
00:00:02]} 39. Re7 {[%clk 00:07:57]} {[%emt 00:00:02]} Rxa4 {[%clk 00:39:30]}
{[%emt 00:00:11]} 0-1

[Event "NJSK 2022 Meisjes C"]
[Site "Almelo, Netherlands"]
[Date "2022.05.03"]
[Round "3.9"]
[White "Hagen, Carlijn"]
[Black "Tunyluhulima, Serana"]
[Result "0-1"]
[TimeControl "90min/40moves + 30min + 30sec/move"]
[WhiteElo "783"]
[BlackElo "1617"]

1. e4 {[%clk 01:30:56]} {[%emt 00:00:03]} e5 {[%clk 01:30:52]} {[%emt
00:00:09]} 2. Nf3 {[%clk 01:31:12]} {[%emt 00:00:14]} Nc6 {[%clk 01:31:07]}
{[%emt 00:00:15]} 3. Bb5 {[%clk 01:31:25]} {[%emt 00:00:17]} d6 {[%clk
01:31:03]} {[%emt 00:00:34]} 4. d3 {[%clk 01:31:15]} {[%emt 00:00:40]} Nf6
{[%clk 01:30:35]} {[%emt 00:00:57]} 5. Nc3 {[%clk 01:30:46]} {[%emt 00:01:00]}
Bg4 {[%clk 01:29:37]} {[%emt 00:01:28]} 6. Nd5 {[%clk 01:29:55]} {[%emt
00:01:21]} Be7 {[%clk 01:26:38]} {[%emt 00:03:29]} 7. Nxe7 {[%clk 01:26:47]}
{[%emt 00:03:39]} Qxe7 {[%clk 01:26:53]} {[%emt 00:00:14]} 8. h3 {[%clk
01:26:23]} {[%emt 00:00:54]} Bh5 {[%clk 01:25:38]} {[%emt 00:01:45]} 9. Be3
{[%clk 01:25:39]} {[%emt 00:01:14]} d5 {[%clk 01:25:10]} {[%emt 00:00:58]} 10.
exd5 {[%clk 01:22:26]} {[%emt 00:03:42]} Nxd5 {[%clk 01:24:58]} {[%emt
00:00:42]} 11. Bd2 {[%clk 01:21:45]} {[%emt 00:01:12]} O-O {[%clk 01:24:15]}
{[%emt 00:01:13]} 12. Qe2 {[%clk 01:19:54]} {[%emt 00:02:21]} Nd4 {[%clk
01:23:20]} {[%emt 00:01:25]} 13. Qxe5 {[%clk 01:18:27]} {[%emt 00:01:55]} Nxf3+
{[%clk 01:21:54]} {[%emt 00:01:57]} 14. gxf3 {[%clk 01:17:40]} {[%emt
00:01:17]} Qxe5+ {[%clk 01:22:04]} {[%emt 00:00:20]} 15. Kf1 {[%clk 01:17:35]}
{[%emt 00:00:36]} Qxb2 {[%clk 01:22:06]} {[%emt 00:00:28]} 16. Re1 {[%clk
01:17:20]} {[%emt 00:00:44]} Qxb5 {[%clk 01:22:12]} {[%emt 00:00:25]} 17. Re5
{[%clk 01:17:27]} {[%emt 00:00:23]} Bxf3 {[%clk 01:22:02]} {[%emt 00:00:39]} 18.
Rg1 {[%clk 01:17:36]} {[%emt 00:00:22]} g6 {[%clk 01:20:29]} {[%emt 00:02:03]}
19. c4 {[%clk 01:17:23]} {[%emt 00:00:43]} Qb1+ {[%clk 01:20:44]} {[%emt
00:00:14]} 20. Re1 {[%clk 01:17:38]} {[%emt 00:00:16]} Qxd3+ {[%clk 01:21:01]}
{[%emt 00:00:13]} 21. Re2 {[%clk 01:17:35]} {[%emt 00:00:33]} Qxe2# {[%clk
01:21:15]} {[%emt 00:00:16]} 0-1